bitfinex-derivatives/quotes_SOLF0:USTF0_20260211
["timestamp","ask_amount","ask_price","bid_price","bid_amount"]
[1770769189467,3.94912196,83.189,83.141,2.59631583]
[1770769189769,3.94912196,83.189,83.15,5.5608164]
[1770769190069,3.94912196,83.189,83.15,2.96450057]
[1770769190271,3.94912196,83.189,83.14,2.96450057]
[1770769190767,2.96450057,83.2,83.161,0.08631208]
[1770769190768,4.11280458,83.186,83.161,0.08631208]
[1770769191866,4.11280458,83.183,83.14,2.62021882]
[1770769192069,4.11280458,83.181,83.14,2.62021882]
[1770769192772,10.8265,83.175,83.14,5.58471939]
[1770769193473,10.8258,83.18,83.141,2.55446624]
[1770769194570,10.8258,83.18,83.151,2.55446624]
[1770769194874,0.07803712,83.182,83.151,2.55446624]
[1770769195075,10.8249,83.187,83.151,2.55446624]
[1770769195271,10.8254,83.183,83.151,2.55446624]
[1770769195567,0.07781087,83.175,83.151,2.55446624]
[1770769195766,0.07781087,83.175,83.141,2.41124494]
[1770769196969,4.19061545,83.175,83.141,2.41124494]
[1770769199374,4.19061545,83.175,83.142,10.8307]
[1770769200077,4.19061545,83.175,83.142,13.32069695]
[1770769200276,4.19061545,83.175,83.14,2.96450057]
[1770769200277,4.19061545,83.175,83.147,10.83]
[1770769202074,4.19061545,83.175,83.13,5.45481372]
[1770769202777,4.11280458,83.159,83.11,2.96450057]
[1770769202973,4.11280458,83.149,83.091,2.48713902]
[1770769203173,4.11280458,83.139,83.082,14.78176089]
[1770769203373,4.11280458,83.139,83.092,2.48713902]
[1770769203774,2.96450057,83.15,83.101,2.48713902]
[1770769203775,0.00143875,83.119,83.101,2.48713902]
[1770769203976,4.11280458,83.151,83.101,2.48713902]
[1770769204178,4.11280458,83.151,83.107,0.08276809]
[1770769204774,4.11280458,83.151,83.108,2.47817109]
[1770769204976,4.11280458,83.151,83.107,0.08276809]
[1770769204977,4.11280458,83.169,83.121,2.47817109]
[1770769205977,4.11280458,83.169,83.137,0.09198881]
[1770769206781,10.8262,83.177,83.137,2.46126755]
[1770769207379,4.11280458,83.182,83.141,2.36927874]
[1770769208679,4.11280458,83.181,83.141,2.36927874]
[1770769209179,4.11280458,83.181,83.137,0.09198881]
[1770769209180,4.11280458,83.177,83.137,0.09198881]
[1770769209681,4.11280458,83.177,83.13,2.96450057]
[1770769210484,4.11280458,83.161,83.12,2.96450057]
[1770769211875,0.07751869,83.149,83.12,2.96450057]
[1770769212982,0.07751869,83.149,83.12,2.96328174]
[1770769215392,0.07751869,83.149,83.113,2.49840893]
[1770769216782,4.19032327,83.149,83.113,2.49840893]
[1770769219595,4.19032327,83.149,83.114,10.8343]
[1770769220894,4.19032327,83.149,83.115,2.56402929]
[1770769221198,0.07751869,83.149,83.118,2.56402929]
[1770769222800,0.07751869,83.149,83.126,10.8328]
[1770769223499,0.07751869,83.149,83.118,13.39782929]
[1770769223698,3.92179792,83.149,83.118,10.8338]
[1770769226001,0.07751869,83.149,83.124,10.833]
[1770769226897,0.07751869,83.149,83.129,10.8323]
[1770769227296,0.07751869,83.149,83.125,2.49920782]
[1770769229503,3.84427923,83.172,83.131,2.47439717]
[1770769231898,95.98,83.204,83.13,2.96328174]
[1770769231899,3.84427923,83.171,83.13,2.96328174]
[1770769232508,3.84427923,83.171,83.121,2.47462206]
[1770769233013,3.84427923,83.171,83.142,0.08037899]
[1770769238115,10.8272,83.17,83.142,0.08037899]
[1770769238308,3.84427923,83.169,83.142,0.08037899]
[1770769239813,14.67217923,83.164,83.121,2.47462206]
[1770769240013,14.75985928,83.164,83.121,2.47462206]
[1770769240311,3.84427923,83.161,83.121,2.47462206]
[1770769241711,10.8286,83.159,83.121,2.47462206]
[1770769243410,10.8293,83.153,83.121,2.47462206]
[1770769244414,0.07768648,83.145,83.121,2.47462206]
[1770769245517,10.8293,83.153,83.121,2.47462206]
[1770769245812,3.84427923,83.162,83.121,2.47462206]
[1770769246015,3.84427923,83.162,83.126,2.54951256]
[1770769249618,14.67147923,83.17,83.126,2.54951256]
[1770769249818,3.84427923,83.169,83.126,2.54951256]
[1770769252620,3.84427923,83.169,83.127,10.8327]
[1770769252822,4.09649263,83.167,83.128,2.54379208]
[1770769253814,4.09649263,83.167,83.139,0.08276385]
[1770769266844,4.09649263,83.164,83.139,0.08276385]
[1770769268250,4.09649263,83.161,83.139,0.08276385]
[1770769270549,10.8286,83.159,83.139,0.08276385]
[1770769270850,4.09649263,83.158,83.119,14.78176089]
[1770769271051,0.08631106,83.157,83.12,20.55536557]
[1770769271250,4.18280369,83.157,83.121,2.81082489]
[1770769271754,10.829,83.156,83.121,2.81082489]
[1770769272253,4.18280369,83.157,83.121,2.81082489]
[1770769273454,4.18280369,83.157,83.122,2.81162338]
[1770769274053,4.18280369,83.157,83.124,10.8331]
[1770769274248,4.18280369,83.157,83.124,13.64472338]
[1770769274451,4.18280369,83.157,83.125,2.81162338]
[1770769274948,0.08631106,83.157,83.131,2.83481095]
[1770769275556,4.09649263,83.172,83.131,2.83481095]
[1770769275955,0.08881123,83.152,83.131,2.83481095]
[1770769276856,0.08881123,83.152,83.131,17.61657184]
[1770769277247,0.08881123,83.152,83.131,2.83481095]
[1770769279956,0.08881123,83.152,83.133,10.8319]
[1770769281752,0.08881123,83.152,83.142,10.8307]
[1770769286057,2.96300018,83.19,83.141,2.71141968]
[1770769286262,2.96300018,83.21,83.161,2.62260845]
[1770769286456,3.76780399,83.21,83.171,2.62260845]
[1770769287462,3.76780399,83.21,83.182,0.07815954]
[1770769288051,3.76780399,83.21,83.183,10.8254]
[1770769289059,3.76780399,83.236,83.191,2.61843404]
[1770769290057,3.76780399,83.236,83.205,0.09180513]
[1770769291257,3.76780399,83.249,83.207,2.60140183]
[1770769291458,3.76780399,83.249,83.205,0.09180513]
[1770769291459,3.76780399,83.249,83.211,2.60140183]
[1770769292266,464.42769766,83.27,83.211,2.60140183]
[1770769292267,3.76780399,83.26,83.211,2.60140183]
[1770769292465,3.76780399,83.26,83.222,0.08224636]
[1770769294362,3.76780399,83.26,83.222,2.66207472]
[1770769296567,3.76780399,83.259,83.222,2.66207472]
[1770769299170,461.46469748,83.27,83.222,2.60352158]
[1770769299465,468.19550165,83.27,83.224,2.52127522]
[1770769299671,3.76780399,83.269,83.23,5.4842754]
[1770769300270,2.96300018,83.3,83.241,3.93584133]
[1770769300466,294.0,83.355,83.253,3.93584133]
[1770769300667,294.0,83.355,83.241,0.08647915]
[1770769300668,2.96300018,83.32,83.261,3.93584133]
[1770769300864,472.09203365,83.353,83.261,3.93584133]
[1770769301070,2.96300018,83.31,83.261,3.93584133]
[1770769301265,2.96300018,83.31,83.25,2.96300018]
[1770769301266,2.96300018,83.3,83.25,3.93584133]
[1770769301567,2.96300018,83.3,83.24,2.96300018]
[1770769301568,2.96300018,83.29,83.24,6.89884151]
[1770769301767,2.96300018,83.29,83.241,3.93584133]
[1770769301963,21.6094,83.343,83.252,3.93584133]
[1770769301964,13.77190018,83.31,83.252,3.93584133]
[1770769302179,315.6038,83.365,83.271,3.93584133]
[1770769302368,3.76780399,83.319,83.271,3.93584133]
[1770769302874,3.76780399,83.319,83.272,10.8137]
[1770769303373,3.76780399,83.309,83.273,3.93584133]
[1770769303672,0.07722419,83.304,83.273,3.93584133]
[1770769304265,3.84502818,83.304,83.272,10.8137]
[1770769305570,2.96300018,83.3,83.272,10.8137]
[1770769305775,3.76780399,83.299,83.245,3.93584133]
[1770769306574,3.76780399,83.289,83.259,10.8155]
[1770769306774,0.08567192,83.28,83.259,10.8155]
[1770769307572,0.08567192,83.28,83.245,3.93584133]
[1770769314180,0.08567192,83.28,83.248,3.99486403]
[1770769315485,0.08567192,83.28,83.251,3.99486403]
[1770769316579,0.08567192,83.28,83.253,10.8163]
[1770769316988,0.08567192,83.28,83.253,14.81116403]
[1770769317587,0.08567192,83.28,83.254,3.99486403]
[1770769317789,0.08567192,83.28,83.255,10.816]
[1770769317981,0.08567192,83.28,83.256,3.99486403]
[1770769319584,0.08567192,83.28,83.257,10.8157]
[1770769319786,0.08567192,83.28,83.258,3.99486403]
[1770769322081,3.86366173,83.28,83.243,3.99486403]
[1770769322482,3.77798981,83.28,83.243,3.99486403]
[1770769322983,0.08597167,83.27,83.243,3.99486403]
[1770769323387,2.96300018,83.3,83.251,3.99486403]
[1770769323585,3.77798981,83.299,83.251,3.99486403]
[1770769324789,3.77798981,83.299,83.261,10.8152]
[1770769325089,3.77798981,83.299,83.267,0.08766348]
[1770769330497,3.77798981,83.314,83.27,2.96300018]
[1770769330702,3.77798981,83.314,83.271,3.99486403]
[1770769331097,3.77798981,83.325,83.271,3.99486403]
[1770769331403,3.77798981,83.325,83.25,95.84]
[1770769331404,3.77798981,83.319,83.261,3.99486403]
[1770769331701,3.77798981,83.319,83.284,0.09220741]
[1770769333911,186.16,83.349,83.284,0.09220741]
[1770769333912,3.77798981,83.309,83.284,0.09220741]
[1770769334099,3.77798981,83.309,83.271,3.99486403]
[1770769336210,0.08412051,83.31,83.272,10.8138]
[1770769336407,0.08412051,83.31,83.273,3.99486403]
[1770769338213,0.08412051,83.31,83.275,3.99486403]
[1770769339009,0.08412051,83.31,83.28,3.99486403]
[1770769342006,14.93451896,83.372,83.28,3.99486403]
[1770769342007,3.73198328,83.33,83.281,3.74332349]
[1770769342205,6.68437984,83.33,83.281,3.74332349]
[1770769342916,6.68437984,83.33,83.282,3.74332349]
[1770769343108,3.73198328,83.33,83.282,3.74332349]
[1770769343314,2.95239656,83.34,83.293,3.93889453]
[1770769343615,3.87173801,83.339,83.293,3.93889453]
[1770769343915,3.87173801,83.339,83.308,0.08240957]
[1770769344210,3.87173801,83.329,83.293,3.93889453]
[1770769344415,3.96099739,83.324,83.293,3.93889453]
[1770769344610,3.96099739,83.324,83.28,13.76509656]
[1770769344611,3.96099739,83.324,83.284,3.93889453]
[1770769345315,3.96099739,83.324,83.287,3.93889453]
[1770769345512,0.08925938,83.324,83.287,3.93889453]
[1770769346821,0.08925938,83.324,83.29,10.8114]
[1770769347222,0.08925938,83.324,83.266,110.26]
[1770769347223,3.96099739,83.324,83.277,3.93889453]
[1770769347419,3.87173801,83.324,83.277,3.93889453]
[1770769347922,0.08155742,83.309,83.282,14.75139453]
[1770769348717,0.08155742,83.309,83.282,3.93889453]
[1770769348915,0.08155742,83.309,83.273,10.8136]
[1770769348916,3.95329543,83.309,83.273,10.8136]
[1770769349120,3.95329543,83.309,83.259,3.93889453]
[1770769349315,3.95329543,83.309,83.26,10.8153]
[1770769349515,3.87173801,83.309,83.26,10.8153]
[1770769349921,0.08878238,83.293,83.26,14.75419453]
[1770769350219,0.08878238,83.293,83.263,3.93889453]
[1770769350620,3.96052039,83.293,83.245,14.78176089]
[1770769350828,3.96052039,83.293,83.245,3.93889453]
[1770769351122,3.87173801,83.293,83.245,3.93889453]
[1770769351323,3.87173801,83.293,83.254,10.8162]
[1770769351630,0.08456566,83.277,83.245,3.93889453]
[1770769352929,0.08456566,83.277,83.231,3.93889453]
[1770769352930,3.95630367,83.277,83.231,3.93889453]
[1770769353427,3.95630367,83.277,83.221,3.93889453]
[1770769353428,3.87173801,83.269,83.221,3.93889453]
[1770769353821,3.87173801,83.269,83.238,10.8181]
[1770769354019,0.08456566,83.277,83.231,3.93889453]
[1770769354020,3.87173801,83.28,83.24,2.95239656]
[1770769354532,3.87173801,83.28,83.24,6.89129109]
[1770769354719,3.87173801,83.28,83.252,0.08861123]
[1770769356325,3.87173801,83.279,83.252,0.08861123]
[1770769356532,3.87173801,83.269,83.23,10.8192]
[1770769357221,3.87173801,83.269,83.228,3.93889453]
[1770769358124,0.08245772,83.257,83.229,10.8194]
[1770769358326,0.08245772,83.257,83.229,14.75829453]
[1770769358632,0.08245772,83.257,83.229,3.93889453]
[1770769360731,3.87173801,83.256,83.219,10.8207]
[1770769361629,3.87173801,83.256,83.215,3.93889453]
[1770769363032,3.87173801,83.249,83.203,3.93889453]
[1770769364133,0.08587105,83.234,83.203,3.93889453]
[1770769365934,0.08587105,83.234,83.191,3.93889453]
[1770769365935,3.87173801,83.23,83.191,3.93889453]
[1770769366137,3.87173801,83.23,83.187,111.12]
[1770769366138,3.87173801,83.229,83.187,111.12]
[1770769366341,3.87173801,83.229,83.178,3.93889453]
[1770769366535,14.69123801,83.229,83.181,3.93889453]
[1770769366741,3.87173801,83.228,83.19,2.95239656]
[1770769367144,0.08372074,83.213,83.19,2.95239656]
[1770769367840,0.08372074,83.213,83.191,3.93889453]
[1770769368035,3.87173801,83.24,83.201,3.93889453]
[1770769368541,294.0,83.312,83.211,3.93889453]
[1770769368542,10.8169,83.249,83.211,3.93889453]
[1770769368939,3.87173801,83.229,83.177,3.93889453]
[1770769369140,3.87173801,83.229,83.18,6.89129109]
[1770769369743,14.69143801,83.227,83.181,3.93889453]
[1770769369951,0.08173523,83.213,83.181,3.93889453]
[1770769374147,4.03993317,83.213,83.174,3.99502642]
[1770769374851,3.95819794,83.239,83.191,3.99502642]
[1770769375344,3.95819794,83.239,83.173,95.86]
[1770769375345,3.95819794,83.219,83.178,3.99502642]
[1770769375839,3.95819794,83.219,83.127,14.78176089]
[1770769376042,3.95819794,83.209,83.16,2.95913858]
[1770769377549,0.08932761,83.193,83.16,2.95913858]
[1770769377850,0.08932761,83.193,83.163,2.27050829]
[1770769378250,10.8186,83.236,83.183,2.18118068]
[1770769378550,14.77679794,83.236,83.191,2.18118068]
[1770769378744,14.77679794,83.236,83.17,0.07887708]
[1770769378745,10.817,83.248,83.201,2.18118068]
[1770769379046,3.95819794,83.249,83.166,95.9]
[1770769379047,3.95819794,83.249,83.211,2.19492958]
[1770769379243,14.77519794,83.248,83.211,2.19492958]
[1770769379443,14.77519794,83.248,83.2,2.95913858]
[1770769379444,3.95819794,83.247,83.2,2.95913858]
[1770769379644,3.95819794,83.247,83.222,0.07802787]
[1770769380154,3.95819794,83.247,83.2,2.95913858]
[1770769380155,0.08738654,83.232,83.2,2.95913858]
[1770769380452,0.08738654,83.232,83.2,5.15406816]
[1770769380648,0.08738654,83.232,83.2,2.19492958]
[1770769380839,4.04558448,83.232,83.19,2.95913858]
[1770769381438,3.95819794,83.232,83.19,2.95913858]
[1770769381843,3.95819794,83.218,83.17,2.95913858]
[1770769382847,0.08372256,83.202,83.175,10.8264]
[1770769383048,3.95819794,83.231,83.181,2.14998499]
[1770769383250,3.95819794,83.231,83.19,2.95913858]
[1770769383545,3.95819794,83.231,83.198,10.8233]
[1770769383752,10.8179,83.241,83.198,10.8233]
[1770769384145,3.95819794,83.24,83.198,10.8233]
[1770769384538,3.95819794,83.24,83.211,0.09187678]
[1770769384740,3.95819794,83.238,83.211,0.09187678]
[1770769389349,7.05,83.239,83.211,0.09187678]
[1770769389748,6.87499491,83.239,83.212,2.07857377]
[1770769389946,6.87499491,83.239,83.22,2.95913858]
[1770769390345,6.87499491,83.239,83.212,2.07857377]
[1770769390751,6.87499491,83.239,83.214,10.8213]
[1770769392156,9.491e-05,83.239,83.22,10.8205]
[1770769393156,9.491e-05,83.239,83.22,13.77963858]
[1770769393655,9.491e-05,83.239,83.226,10.8198]
[1770769393855,3.95819794,83.266,83.226,10.8198]
[1770769393856,3.95819794,83.266,83.23,2.95913858]
[1770769394847,3.95819794,83.266,83.24,0.0874402]
[1770769397162,3.95819794,83.266,83.22,2.95569569]
[1770769397163,3.95819794,83.266,83.225,10.8199]
[1770769397357,3.95819794,83.266,83.22,2.95569569]
[1770769397560,0.07647159,83.261,83.22,2.95569569]
[1770769397763,4.03466953,83.261,83.213,2.04685747]
[1770769399162,4.03466953,83.261,83.219,10.8206]
[1770769399461,3.95819794,83.259,83.219,10.8206]
[1770769400059,4.11168769,83.249,83.204,10.8227]
[1770769400254,4.11168769,83.249,83.2,5.02805146]
[1770769400860,4.11168769,83.249,83.211,10.8217]
[1770769401057,5.98,83.288,83.221,2.09975177]
[1770769401058,4.11168769,83.264,83.221,2.09975177]
[1770769401257,4.11168769,83.264,83.23,2.95569569]
[1770769401463,4.11168769,83.279,83.231,2.00935015]
[1770769402164,2.95569569,83.28,83.231,2.00935015]
[1770769402165,4.11168769,83.272,83.231,2.00935015]
[1770769402561,4.11168769,83.272,83.247,0.07645129]
[1770769403466,4.06590253,83.27,83.231,2.00935015]
[1770769403864,4.14607035,83.268,83.231,2.00935015]
[1770769405066,4.14607035,83.268,83.226,10.8198]
[1770769405869,4.14607035,83.268,83.194,22.18865723]
[1770769405870,4.14607035,83.268,83.238,10.8182]
[1770769406363,4.06590253,83.268,83.238,10.8182]
[1770769406762,0.07580605,83.261,83.238,10.8182]
[1770769407268,0.07580605,83.261,83.249,10.8168]
[1770769407464,5.98,83.288,83.249,10.8168]
[1770769407664,5.98,83.288,83.25,2.95569569]
[1770769407860,5.98,83.288,83.259,10.8155]
[1770769408067,5.98,83.288,83.251,1.99288126]
[1770769408466,5.98,83.288,83.258,10.8156]
[1770769408662,5.98,83.288,83.259,1.99288126]
[1770769408869,4.06590253,83.308,83.262,1.96740336]
[1770769409066,4.06590253,83.308,83.267,10.8144]
[1770769409869,4.06590253,83.308,83.279,0.09121404]
[1770769412169,4.06590253,83.308,83.267,10.8144]
[1770769412474,4.06590253,83.299,83.267,10.8144]
[1770769412781,4.06590253,83.299,83.256,10.8158]
[1770769413276,4.06590253,83.279,83.241,10.8178]
[1770769413777,4.06590253,83.278,83.248,10.8169]
[1770769414679,4.06590253,83.278,83.241,1.88953704]
[1770769414680,0.0756986,83.271,83.241,1.88953704]
[1770769418083,0.0756986,83.271,83.229,1.88185882]
[1770769418281,0.0756986,83.271,83.218,10.8208]
[1770769418282,4.06590253,83.27,83.231,1.88185882]
[1770769418988,0.07833268,83.259,83.231,1.88185882]
[1770769421677,0.07833268,83.259,83.22,2.95569569]
[1770769423276,4.06590253,83.258,83.216,10.821]
[1770769423583,4.06590253,83.258,83.2,2.95569569]
[1770769423584,4.06590253,83.258,83.208,10.8221]
[1770769423782,0.07833268,83.259,83.221,1.86203551]
[1770769423993,0.07833268,83.259,83.221,12.68243551]
[1770769424187,2.95569569,83.27,83.222,1.86203551]
[1770769424486,0.0832871,83.248,83.222,1.86203551]
[1770769425685,0.0832871,83.248,83.223,10.8202]
[1770769425886,0.0832871,83.248,83.223,12.68298068]
[1770769426483,0.0832871,83.248,83.227,1.86278068]
[1770769426686,2.95569569,83.27,83.227,1.86278068]
[1770769427188,10.8154,83.261,83.229,0.08478796]
[1770769427386,4.06590253,83.269,83.229,0.08478796]
[1770769428686,14.88020253,83.269,83.229,0.08478796]
[1770769430191,4.06590253,83.268,83.229,0.08478796]
[1770769430389,4.06590253,83.268,83.23,10.8192]
[1770769430590,95.84,83.294,83.23,10.8192]
[1770769430591,3.79748603,83.285,83.231,1.45370631]
[1770769431595,3.79748603,83.285,83.25,0.08469888]
[1770769433890,3.79748603,83.299,83.251,1.46199467]
[1770769434888,3.79748603,83.299,83.267,0.0808271]
[1770769435092,3.79748603,83.309,83.27,10.814]
[1770769435294,3.79748603,83.309,83.267,0.0808271]
[1770769435490,178.98,83.336,83.237,1.59315788]
[1770769435491,3.79748603,83.289,83.237,1.59315788]
[1770769435887,3.79748603,83.289,83.241,1.59315788]
[1770769436699,3.79748603,83.289,83.254,10.8162]
[1770769437100,0.09081034,83.273,83.254,10.8162]
[1770769437593,0.09081034,83.273,83.246,10.8171]
[1770769437998,0.09081034,83.273,83.251,1.59512729]
[1770769439608,3.79748603,83.289,83.254,0.08926148]
[1770769440902,3.79748603,83.289,83.254,1.80948538]
[1770769441513,2.95569569,83.31,83.254,1.80948538]
[1770769441701,3.79748603,83.323,83.271,1.7202239]
[1770769442199,3.79748603,83.323,83.281,10.8126]
[1770769442402,3.79748603,83.336,83.285,0.08207356]
[1770769442699,3.79748603,83.336,83.286,1.7202239]
[1770769443409,3.79748603,83.336,83.292,0.08903647]
[1770769443906,3.79748603,83.336,83.292,1.3798361]
[1770769444101,0.0001,83.315,83.295,10.8108]
[1770769445901,3.79748603,83.325,83.295,10.8108]
[1770769446301,3.79748603,83.325,83.292,0.08903647]
[1770769449401,3.79748603,83.325,83.295,10.8108]
[1770769449812,3.79748603,83.325,83.292,0.08903647]
[1770769450307,3.79748603,83.339,83.293,12.37923721]
[1770769451410,3.79748603,83.339,83.308,0.08743594]
[1770769452107,3.79748603,83.329,83.293,10.8111]
[1770769453912,3.79748603,83.329,83.282,12.48658603]
[1770769454207,3.79748603,83.329,83.282,1.67418603]
[1770769455006,0.08168719,83.314,83.282,1.67418603]
[1770769455702,0.08168719,83.314,83.288,10.8117]
[1770769456815,0.08168719,83.314,83.282,1.67418603]
[1770769457717,0.08168719,83.314,83.284,10.8123]
[1770769457907,0.08168719,83.314,83.284,12.48502782]
[1770769458214,0.08168719,83.314,83.29,2.95103904]
[1770769458915,0.08168719,83.314,83.29,2.95130466]
[1770769459417,0.08168719,83.314,83.29,13.76280466]
[1770769460018,3.79748603,83.313,83.282,10.8125]
[1770769461109,3.79748603,83.313,83.279,95.8]
[1770769461110,0.08168719,83.314,83.29,2.95130466]
[1770769462214,3.92490385,83.355,83.301,1.61122203]
[1770769462519,21.5935,83.405,83.33,2.95130466]
[1770769462520,3.92490385,83.379,83.33,2.95130466]
[1770769462722,3.92490385,83.371,83.33,2.95130466]
[1770769463319,3.88754073,83.366,83.323,10.8072]
[1770769463512,3.88754073,83.366,83.275,14.78176089]
[1770769463513,3.88754073,83.359,83.31,2.95130466]
[1770769463713,3.88754073,83.359,83.32,2.95130466]
[1770769464116,0.07883421,83.343,83.32,2.95130466]
[1770769465114,0.07883421,83.343,83.311,10.8087]
[1770769465708,0.07883421,83.343,83.32,2.95130466]
[1770769466317,0.07883421,83.343,83.321,12.28974822]
[1770769466714,0.07883421,83.343,83.32,2.95130466]
[1770769467617,0.07883421,83.343,83.31,119.95130466]
[1770769467819,0.07883421,83.343,83.31,2.95130466]
[1770769468308,0.07883421,83.343,83.311,10.8087]
[1770769469619,0.07883421,83.343,83.31,4.48207944]
[1770769470416,0.07883421,83.343,83.308,117.14]
[1770769470417,0.07883421,83.343,83.32,2.95130466]
[1770769470720,3.88754073,83.367,83.321,10.90944745]
[1770769471017,3.88754073,83.367,83.322,10.90944745]
[1770769471215,3.88754073,83.36,83.323,10.90944745]
[1770769471525,3.88754073,83.359,83.324,10.90944745]
[1770769471819,3.88754073,83.359,83.325,10.90944745]
[1770769472016,3.88754073,83.359,83.326,10.90944745]
[1770769472216,2.95130466,83.36,83.327,1.10264949]
[1770769472217,3.88754073,83.357,83.327,1.10264949]
[1770769472522,3.88754073,83.357,83.31,2.95130466]
[1770769472715,3.88754073,83.353,83.31,2.95130466]
[1770769473319,0.07801109,83.34,83.31,2.95130466]
[1770769474118,3.96555182,83.34,83.305,95.78]
[1770769474813,3.88754073,83.338,83.291,1.62964063]
[1770769475018,3.88754073,83.319,83.27,2.95130466]
[1770769475214,3.88754073,83.319,83.22,240.02]
[1770769475215,3.88754073,83.309,83.26,2.95130466]
[1770769475415,3.88754073,83.309,83.232,22.18865723]
[1770769475416,3.88754073,83.299,83.24,2.95130466]
[1770769475622,3.88754073,83.29,83.24,2.95130466]
[1770769476022,3.88754073,83.289,83.24,2.95130466]
[1770769476215,3.88754073,83.289,83.24,4.58179244]
[1770769476216,3.88754073,83.288,83.24,4.58179244]
[1770769476417,47.28174706,83.34,83.238,95.76]
[1770769476418,3.88754073,83.301,83.251,1.63048778]
[1770769476616,0.07986425,83.273,83.251,1.63048778]
[1770769477211,0.07986425,83.273,83.24,2.95130466]
[1770769477412,0.07986425,83.273,83.25,2.95130466]
[1770769477926,2.95130466,83.3,83.251,1.76861765]
[1770769478318,3.88754073,83.302,83.254,1.68726703]
[1770769479322,10.8108,83.296,83.254,1.68726703]
[1770769479724,10.8108,83.296,83.27,0.08094708]
[1770769480517,3.88754073,83.315,83.271,1.76701284]
[1770769481319,3.88754073,83.315,83.285,0.08028354]
[1770769481822,3.88754073,83.329,83.285,0.08028354]
[1770769482424,3.88754073,83.329,83.28,2.95130466]
[1770769482722,10.8072,83.324,83.299,0.08615838]
[1770769482923,14.69474073,83.324,83.299,0.08615838]
[1770769483732,3.88754073,83.323,83.299,0.08615838]
[1770769484122,3.88754073,83.323,83.3,10.18809344]
[1770769484327,3.88754073,83.323,83.301,10.18809344]
[1770769484526,3.88754073,83.323,83.302,9.344e-05]
[1770769484720,3.88754073,83.323,83.299,0.08615838]
[1770769485624,10.8074,83.322,83.299,0.08615838]
[1770769486523,3.88754073,83.317,83.271,1.76701284]
[1770769486924,3.88754073,83.317,83.26,98.75130466]
[1770769487618,3.88754073,83.309,83.26,98.75130466]
[1770769487822,3.88754073,83.306,83.26,98.75130466]
[1770769488126,0.09161539,83.297,83.26,98.75130466]
[1770769488324,3.88754073,83.288,83.243,1.84053982]
[1770769489324,0.08092815,83.274,83.243,1.84053982]
[1770769489725,10.8109,83.295,83.251,1.8508092]
[1770769490624,10.8109,83.295,83.26,2.95130466]
[1770769490820,10.8109,83.295,83.26,4.80075331]
[1770769492030,10.8109,83.295,83.269,0.07601637]
[1770769493728,3.88754073,83.302,83.269,0.07601637]
[1770769494040,4.02077511,83.319,83.27,2.95130466]
[1770769495237,14.82947511,83.312,83.27,2.95130466]
[1770769495827,4.02077511,83.311,83.283,0.07725973]
[1770769496436,4.02077511,83.311,83.284,10.05298591]
[1770769496636,4.02077511,83.311,83.285,10.05298591]
[1770769496933,4.02077511,83.311,83.283,0.07725973]
[1770769496934,4.02077511,83.311,83.286,10.05298591]
[1770769497137,4.02077511,83.311,83.287,10.05298591]
[1770769497331,4.02077511,83.311,83.288,10.05298591]
[1770769497530,4.02077511,83.308,83.283,0.07725973]
[1770769497835,4.02077511,83.308,83.261,3.89806542]
[1770769497836,0.07585185,83.307,83.261,3.89806542]
[1770769500134,4.02077511,83.304,83.261,3.89806542]
[1770769500529,4.02077511,83.304,83.25,2.95130466]
[1770769500735,4.02077511,83.299,83.251,3.89806542]
[1770769500935,14.83117511,83.299,83.251,3.89806542]
[1770769501134,2.95130466,83.31,83.251,3.89806542]
[1770769501135,4.02077511,83.298,83.251,3.89806542]
[1770769501430,0.0801867,83.283,83.251,3.89806542]
[1770769502141,4.02077511,83.298,83.261,3.89806542]
[1770769502739,10.8106,83.297,83.261,3.89806542]
[1770769503440,10.8106,83.297,83.271,0.08505822]
[1770769505138,4.02077511,83.311,83.271,3.98312364]
[1770769505539,10.8097,83.305,83.271,3.89806542]
[1770769506038,10.8097,83.305,83.283,0.07796524]
[1770769506238,4.02077511,83.311,83.283,0.07796524]
[1770769509359,2.95130466,83.32,83.283,0.07796524]
[1770769509360,4.02077511,83.307,83.283,0.07796524]
[1770769511451,4.02077511,83.319,83.283,3.97603066]
[1770769511652,4.02077511,83.319,83.283,3.89806542]
[1770769512153,4.02077511,83.319,83.293,0.07740579]
[1770769515057,4.02077511,83.316,83.293,0.07740579]
[1770769515563,4.02077511,83.316,83.271,3.89806542]
[1770769515755,4.02077511,83.316,83.272,3.89806542]
[1770769515957,4.02077511,83.329,83.296,0.08028544]
[1770769516559,4.02077511,83.329,83.291,3.89806542]
[1770769516863,2.95130466,83.34,83.304,0.08467197]
[1770769517055,4.02077511,83.339,83.304,0.08467197]
[1770769517560,10.8061,83.332,83.304,0.08467197]
[1770769519466,175.0,83.369,83.304,0.08467197]
[1770769519467,14.82727511,83.329,83.304,0.08467197]
[1770769519671,4.02077511,83.328,83.304,0.08467197]
[1770769519962,4.02077511,83.328,83.287,10.8118]
[1770769520353,4.02077511,83.328,83.308,0.0812283]